[Event "Late-Titled-Tuesday-Blitz-June-18-2024"]
[Site "Chess.com"]
[Date "2024.06.18"]
[Round "5"]
[White "AlbusSevresPotter"]
[Black "scrambleyourbrain"]
[Result "1-0"]
[WhiteElo "2617"]
[BlackElo "2398"]
[TimeControl "180+1"]
[EndTime "14:57:12 PDT"]
[Termination "AlbusSevresPotter won by checkmate"]

1. e4 {[%clk 0:03:00.9]} 1... e5 {[%clk 0:02:59]} 2. Nf3 {[%clk 0:02:51.5]} 2...
Nc6 {[%clk 0:02:59]} 3. Bb5 {[%clk 0:02:51.7]} 3... a6 {[%clk 0:02:59.3]} 4. Ba4
{[%clk 0:02:51.7]} 4... Nf6 {[%clk 0:02:59.7]} 5. O-O {[%clk 0:02:52]} 5... Be7
{[%clk 0:03:00.1]} 6. Re1 {[%clk 0:02:52.2]} 6... b5 {[%clk 0:03:00.4]} 7. Bb3
{[%clk 0:02:52.6]} 7... d6 {[%clk 0:03:01]} 8. c3 {[%clk 0:02:52.6]} 8... O-O
{[%clk 0:03:01.6]} 9. h3 {[%clk 0:02:53.2]} 9... Na5 {[%clk 0:02:59]} 10. Bc2
{[%clk 0:02:53.4]} 10... c5 {[%clk 0:02:59.7]} 11. d4 {[%clk 0:02:53.8]} 11...
Qc7 {[%clk 0:03:00.1]} 12. d5 {[%clk 0:02:54.4]} 12... Nd7 {[%clk 0:02:59.5]}
13. b3 {[%clk 0:02:30.9]} 13... Nb6 {[%clk 0:02:59.2]} 14. Nbd2 {[%clk
0:02:26.6]} 14... c4 {[%clk 0:02:59.5]} 15. b4 {[%clk 0:02:25.6]} 15... Nb7
{[%clk 0:03:00.2]} 16. a3 {[%clk 0:02:22.1]} 16... a5 {[%clk 0:03:00.6]} 17. Nf1
{[%clk 0:02:06.8]} 17... axb4 {[%clk 0:03:00.4]} 18. cxb4 {[%clk 0:02:07.7]}
18... f5 {[%clk 0:03:00.2]} 19. exf5 {[%clk 0:02:07.8]} 19... Bxf5 {[%clk
0:03:00.4]} 20. Bxf5 {[%clk 0:02:08.7]} 20... Rxf5 {[%clk 0:03:00.6]} 21. Ng3
{[%clk 0:02:09.3]} 21... Rf7 {[%clk 0:02:59.1]} 22. Ne4 {[%clk 0:02:09.6]} 22...
h6 {[%clk 0:02:57.6]} 23. Be3 {[%clk 0:02:04.2]} 23... Na4 {[%clk 0:02:56.9]}
24. Qc2 {[%clk 0:02:02.3]} 24... Raf8 {[%clk 0:02:56.4]} 25. Nfd2 {[%clk
0:02:00.3]} 25... Qd7 {[%clk 0:02:55.5]} 26. Rac1 {[%clk 0:01:57.9]} 26... Nd8
{[%clk 0:02:45.7]} 27. f3 {[%clk 0:01:47.9]} 27... Qb7 {[%clk 0:02:41.8]} 28.
Nxc4 {[%clk 0:01:38.8]} 28... bxc4 {[%clk 0:02:41.8]} 29. Qxa4 {[%clk 0:01:37]}
29... Qxd5 {[%clk 0:02:42]} 30. Red1 {[%clk 0:01:11.6]} 30... Qe6 {[%clk
0:02:41.4]} 31. Qa6 {[%clk 0:01:12.2]} 31... Qg6 {[%clk 0:02:32.4]} 32. Qxc4
{[%clk 0:01:08.7]} 32... Ne6 {[%clk 0:02:29.2]} 33. Kh2 {[%clk 0:00:59.1]} 33...
Kh8 {[%clk 0:02:24.5]} 34. Nxd6 {[%clk 0:00:56]} 34... Rxf3 {[%clk 0:01:46.4]}
35. gxf3 {[%clk 0:00:49]} 35... Rxf3 {[%clk 0:01:46.5]} 36. Rg1 {[%clk 0:00:19]}
36... Qf6 {[%clk 0:01:37.6]} 37. Qc8+ {[%clk 0:00:15]} 37... Kh7 {[%clk
0:01:37.1]} 38. Qc2+ {[%clk 0:00:15.1]} 38... Kh8 {[%clk 0:01:36.2]} 39. Qe4
{[%clk 0:00:14.8]} 39... Bxd6 {[%clk 0:01:33.3]} 40. Rc8+ {[%clk 0:00:15.2]}
40... Nf8 {[%clk 0:01:33.2]} 41. Rg6 {[%clk 0:00:10.3]} 41... Qf7 {[%clk
0:01:31]} 42. Rxd6 {[%clk 0:00:09.3]} 42... Rf1 {[%clk 0:01:22.9]} 43. Rdd8
{[%clk 0:00:09.6]} 43... Qa2+ {[%clk 0:01:20.6]} 44. Qg2 {[%clk 0:00:09]} 44...
Qxg2+ {[%clk 0:01:13.6]} 45. Kxg2 {[%clk 0:00:09.9]} 45... Re1 {[%clk
0:01:13.6]} 46. Rxf8+ {[%clk 0:00:10.3]} 46... Kh7 {[%clk 0:01:14.5]} 47. Kf2
{[%clk 0:00:10.1]} 47... Ra1 {[%clk 0:01:14.5]} 48. h4 {[%clk 0:00:10.9]} 48...
Rxa3 {[%clk 0:01:14.7]} 49. h5 {[%clk 0:00:11.5]} 49... Ra2+ {[%clk 0:01:14.9]}
50. Kf3 {[%clk 0:00:11.4]} 50... g5 {[%clk 0:01:15.5]} 51. Rf7# {[%clk
0:00:11.4]} 1-0

[Event "Late-Titled-Tuesday-Blitz-June-18-2024"]
[Site "Chess.com"]
[Date "2024.06.18"]
[Round "5"]
[White "djano"]
[Black "Andrii_Prydun"]
[Result "0-1"]
[WhiteElo "2576"]
[BlackElo "2373"]
[TimeControl "180+1"]
[EndTime "14:57:14 PDT"]
[Termination "Andrii_Prydun won by checkmate"]

1. e4 {[%clk 0:03:00.9]} 1... c5 {[%clk 0:02:59.2]} 2. Nc3 {[%clk 0:03:00.5]}
2... d6 {[%clk 0:02:50.5]} 3. f4 {[%clk 0:03:00.2]} 3... g6 {[%clk 0:02:47.9]}
4. Nf3 {[%clk 0:03:00.3]} 4... Bg7 {[%clk 0:02:36.4]} 5. Bc4 {[%clk 0:02:59]}
5... Nc6 {[%clk 0:02:35.4]} 6. O-O {[%clk 0:02:58.8]} 6... Nf6 {[%clk
0:02:35.5]} 7. d3 {[%clk 0:02:53]} 7... Nd4 {[%clk 0:02:29.1]} 8. f5 {[%clk
0:02:50.5]} 8... gxf5 {[%clk 0:02:26.1]} 9. Nxd4 {[%clk 0:02:47.1]} 9... cxd4
{[%clk 0:02:25.6]} 10. Ne2 {[%clk 0:02:41.2]} 10... d5 {[%clk 0:02:20]} 11. exd5
{[%clk 0:02:39.2]} 11... Nxd5 {[%clk 0:02:20.9]} 12. Ng3 {[%clk 0:02:37.1]}
12... e6 {[%clk 0:02:18.3]} 13. Nh5 {[%clk 0:02:35.1]} 13... Be5 {[%clk
0:02:17.3]} 14. Qf3 {[%clk 0:02:32.4]} 14... Nf6 {[%clk 0:02:11.7]} 15. Ng7+
{[%clk 0:02:28.2]} 15... Ke7 {[%clk 0:02:11.6]} 16. Bg5 {[%clk 0:02:12.6]} 16...
Rg8 {[%clk 0:02:08.6]} 17. Bxf6+ {[%clk 0:01:39.5]} 17... Bxf6 {[%clk
0:02:06.5]} 18. Nh5 {[%clk 0:01:35.9]} 18... Rg6 {[%clk 0:02:01.2]} 19. Rae1
{[%clk 0:01:33.6]} 19... Kf8 {[%clk 0:01:54]} 20. Nf4 {[%clk 0:01:23.5]} 20...
Rh6 {[%clk 0:01:46.6]} 21. Nxe6+ {[%clk 0:00:56.6]} 21... fxe6 {[%clk
0:01:41.6]} 22. Bxe6 {[%clk 0:00:55.9]} 22... Qd6 {[%clk 0:01:41.3]} 23. Bxf5
{[%clk 0:00:38.5]} 23... Qxh2+ {[%clk 0:01:35.1]} 24. Kf2 {[%clk 0:00:38.8]}
24... Bh4+ {[%clk 0:01:25.5]} 25. Ke2 {[%clk 0:00:38.4]} 25... Rf6 {[%clk
0:01:19.2]} 26. Qd5 {[%clk 0:00:28.2]} 26... Bxf5 {[%clk 0:01:14]} 27. Rxf5
{[%clk 0:00:27]} 27... Re8+ {[%clk 0:01:13.6]} 28. Kd2 {[%clk 0:00:22.9]} 28...
Bxe1+ {[%clk 0:01:10.6]} 29. Kd1 {[%clk 0:00:23.2]} 29... Qh6 {[%clk 0:01:04.8]}
30. Qd6+ {[%clk 0:00:21.4]} 30... Kf7 {[%clk 0:01:04.5]} 31. Qd5+ {[%clk
0:00:15.5]} 31... Re6 {[%clk 0:00:51.1]} 32. Qd7+ {[%clk 0:00:14.8]} 32... Re7
{[%clk 0:00:50.7]} 33. Qd5+ {[%clk 0:00:13.8]} 33... Re6 {[%clk 0:00:41.6]} 34.
Qd7+ {[%clk 0:00:13.4]} 34... Kg6 {[%clk 0:00:40.1]} 35. Rf3 {[%clk 0:00:06.7]}
35... Qd2# {[%clk 0:00:39.4]} 0-1

[Event "Late-Titled-Tuesday-Blitz-June-18-2024"]
[Site "Chess.com"]
[Date "2024.06.18"]
[Round "5"]
[White "WilsonPalencia21"]
[Black "Aygehovit1992"]
[Result "1-0"]
[WhiteElo "2603"]
[BlackElo "2782"]
[TimeControl "180+1"]
[EndTime "14:57:15 PDT"]
[Termination "WilsonPalencia21 won by resignation"]

1. d4 {[%clk 0:02:56.3]} 1... Nf6 {[%clk 0:02:58.8]} 2. c4 {[%clk 0:02:55.2]}
2... e6 {[%clk 0:02:59]} 3. Nf3 {[%clk 0:02:54.9]} 3... Bb4+ {[%clk 0:02:58.2]}
4. Nbd2 {[%clk 0:02:54.5]} 4... b6 {[%clk 0:02:56.4]} 5. a3 {[%clk 0:02:50.9]}
5... Bxd2+ {[%clk 0:02:56.3]} 6. Qxd2 {[%clk 0:02:51.7]} 6... Bb7 {[%clk
0:02:56.4]} 7. e3 {[%clk 0:02:52.3]} 7... O-O {[%clk 0:02:52.8]} 8. b3 {[%clk
0:02:52.3]} 8... d6 {[%clk 0:02:44.6]} 9. Bb2 {[%clk 0:02:52]} 9... Nbd7 {[%clk
0:02:39.3]} 10. Be2 {[%clk 0:02:49.9]} 10... Ne4 {[%clk 0:02:39.3]} 11. Qc2
{[%clk 0:02:48.3]} 11... f5 {[%clk 0:02:40]} 12. O-O {[%clk 0:02:40.4]} 12... g5
{[%clk 0:02:33.9]} 13. d5 {[%clk 0:02:34.3]} 13... e5 {[%clk 0:02:31.4]} 14. Ne1
{[%clk 0:02:33.2]} 14... g4 {[%clk 0:02:27.1]} 15. f3 {[%clk 0:02:26]} 15...
gxf3 {[%clk 0:02:25.8]} 16. gxf3 {[%clk 0:02:26]} 16... Ng5 {[%clk 0:02:02.8]}
17. f4 {[%clk 0:02:10.9]} 17... Nh3+ {[%clk 0:01:59.2]} 18. Kh1 {[%clk
0:02:09.7]} 18... Qh4 {[%clk 0:02:00]} 19. Nf3 {[%clk 0:01:52.3]} 19... Nf2+
{[%clk 0:01:41.1]} 20. Rxf2 {[%clk 0:01:08.1]} 20... Qxf2 {[%clk 0:01:42]} 21.
Rg1+ {[%clk 0:01:07.9]} 21... Kh8 {[%clk 0:01:41.8]} 22. fxe5 {[%clk 0:01:08.2]}
22... Qxe3 {[%clk 0:00:40.4]} 23. exd6+ {[%clk 0:00:57.4]} 23... Nf6 {[%clk
0:00:40.7]} 24. Qxf5 {[%clk 0:00:54.5]} 24... Qh6 {[%clk 0:00:34.6]} 25. Ne5
{[%clk 0:00:21.7]} 25... Rae8 {[%clk 0:00:28.1]} 26. Ng4 {[%clk 0:00:18.7]}
26... Qg6 {[%clk 0:00:17.6]} 27. Bxf6+ {[%clk 0:00:17.6]} 27... Rxf6 {[%clk
0:00:14.4]} 28. Qxf6+ {[%clk 0:00:17.4]} 28... Qxf6 {[%clk 0:00:13.2]} 29. Nxf6
{[%clk 0:00:18.3]} 1-0

[Event "Late-Titled-Tuesday-Blitz-June-18-2024"]
[Site "Chess.com"]
[Date "2024.06.18"]
[Round "5"]
[White "RantomOpening"]
[Black "RichardShtivelband"]
[Result "1-0"]
[WhiteElo "2612"]
[BlackElo "2385"]
[TimeControl "180+1"]
[EndTime "14:57:15 PDT"]
[Termination "RantomOpening won by resignation"]

1. d4 {[%clk 0:03:00.2]} 1... Nf6 {[%clk 0:02:56.2]} 2. Nf3 {[%clk 0:03:00.2]}
2... e6 {[%clk 0:02:55.2]} 3. e3 {[%clk 0:02:58.3]} 3... c5 {[%clk 0:02:50.8]}
4. Be2 {[%clk 0:02:57.7]} 4... Nc6 {[%clk 0:02:50.4]} 5. O-O {[%clk 0:02:57.2]}
5... Be7 {[%clk 0:02:50]} 6. b3 {[%clk 0:02:57.6]} 6... cxd4 {[%clk 0:02:48.6]}
7. exd4 {[%clk 0:02:56.7]} 7... b6 {[%clk 0:02:47.6]} 8. Bb2 {[%clk 0:02:57]}
8... Bb7 {[%clk 0:02:47.7]} 9. Nbd2 {[%clk 0:02:57.4]} 9... O-O {[%clk 0:02:46]}
10. c4 {[%clk 0:02:56.7]} 10... d6 {[%clk 0:02:45.1]} 11. Re1 {[%clk 0:02:54.6]}
11... a6 {[%clk 0:02:44.2]} 12. Nf1 {[%clk 0:02:54.6]} 12... Rc8 {[%clk
0:02:44]} 13. Ng3 {[%clk 0:02:54.5]} 13... Rc7 {[%clk 0:02:43.7]} 14. a3 {[%clk
0:02:53.1]} 14... Qa8 {[%clk 0:02:43.2]} 15. Qd2 {[%clk 0:02:53]} 15... Rd8
{[%clk 0:02:40.6]} 16. Rac1 {[%clk 0:02:48.2]} 16... Na5 {[%clk 0:02:37.9]} 17.
Qe3 {[%clk 0:02:39]} 17... d5 {[%clk 0:02:25.9]} 18. c5 {[%clk 0:02:37.9]} 18...
Qa7 {[%clk 0:01:57.6]} 19. b4 {[%clk 0:02:21.3]} 19... Nc4 {[%clk 0:01:56.8]}
20. Bxc4 {[%clk 0:02:20.7]} 20... dxc4 {[%clk 0:01:57.7]} 21. Rxc4 {[%clk
0:02:21.5]} 21... b5 {[%clk 0:01:41.6]} 22. Rcc1 {[%clk 0:02:20.9]} 22... Qa8
{[%clk 0:01:31.9]} 23. Rcd1 {[%clk 0:02:03.1]} 23... Bxf3 {[%clk 0:01:29.7]} 24.
Qxf3 {[%clk 0:02:01.9]} 24... Qxf3 {[%clk 0:01:28.6]} 25. gxf3 {[%clk
0:02:02.8]} 25... Nd5 {[%clk 0:01:26]} 26. Ne4 {[%clk 0:02:02.7]} 26... a5
{[%clk 0:01:18.4]} 27. Nc3 {[%clk 0:02:01.7]} 27... axb4 {[%clk 0:00:43.8]} 28.
Nxd5 {[%clk 0:01:54.5]} 28... Rxd5 {[%clk 0:00:43.3]} 29. axb4 {[%clk
0:01:55.1]} 29... Bf6 {[%clk 0:00:42.4]} 30. Ra1 {[%clk 0:01:52.2]} 30... h5
{[%clk 0:00:39.2]} 31. Ra5 {[%clk 0:01:50.6]} 31... Rb7 {[%clk 0:00:26.1]} 32.
Rc1 {[%clk 0:01:46.7]} 32... Bxd4 {[%clk 0:00:18.9]} 33. Bxd4 {[%clk 0:01:44.3]}
33... Rxd4 {[%clk 0:00:19.1]} 34. c6 {[%clk 0:01:44.8]} 34... Rc7 {[%clk
0:00:19.1]} 35. Rxb5 {[%clk 0:01:44.9]} 35... Kf8 {[%clk 0:00:13.4]} 36. Rb7
{[%clk 0:01:39]} 36... Rc8 {[%clk 0:00:13]} 37. c7 {[%clk 0:01:38.2]} 37... Ke7
{[%clk 0:00:13.5]} 38. b5 {[%clk 0:01:34.5]} 38... Kd7 {[%clk 0:00:12.6]} 39. b6
{[%clk 0:01:34.4]} 39... e5 {[%clk 0:00:12.7]} 40. Rb8 {[%clk 0:01:33.4]} 40...
Rb4 {[%clk 0:00:12.5]} 41. Rd1+ {[%clk 0:01:15.3]} 41... Rd4 {[%clk 0:00:11.9]}
42. Rxd4+ {[%clk 0:01:11.9]} 42... exd4 {[%clk 0:00:11.9]} 43. b7 {[%clk
0:01:12.4]} 43... Rxc7 {[%clk 0:00:10.5]} 44. Rd8+ {[%clk 0:01:11.6]} 44... Kxd8
{[%clk 0:00:08.1]} 45. b8=Q+ {[%clk 0:01:12.5]} 45... Kd7 {[%clk 0:00:08.6]} 46.
Qb5+ {[%clk 0:01:12.3]} 46... Ke7 {[%clk 0:00:08.5]} 47. Qe5+ {[%clk 0:01:12.3]}
47... Kd7 {[%clk 0:00:08.1]} 48. Qxd4+ {[%clk 0:01:13.2]} 1-0

[Event "Late-Titled-Tuesday-Blitz-June-18-2024"]
[Site "Chess.com"]
[Date "2024.06.18"]
[Round "5"]
[White "subham777"]
[Black "dretch"]
[Result "0-1"]
[WhiteElo "2623"]
[BlackElo "2842"]
[TimeControl "180+1"]
[EndTime "14:57:17 PDT"]
[Termination "dretch won on time"]

1. e4 {[%clk 0:03:00.9]} 1... e6 {[%clk 0:02:56.8]} 2. Nf3 {[%clk 0:03:00.1]}
2... d5 {[%clk 0:02:57.4]} 3. Nc3 {[%clk 0:02:59.6]} 3... Nf6 {[%clk 0:02:57.2]}
4. e5 {[%clk 0:02:59.7]} 4... Nfd7 {[%clk 0:02:57.7]} 5. d4 {[%clk 0:02:59.1]}
5... c5 {[%clk 0:02:58.4]} 6. dxc5 {[%clk 0:03:00]} 6... Nc6 {[%clk 0:02:55.9]}
7. Bf4 {[%clk 0:02:51.3]} 7... Bxc5 {[%clk 0:02:54.6]} 8. Bd3 {[%clk 0:02:50.9]}
8... f6 {[%clk 0:02:54.8]} 9. exf6 {[%clk 0:02:50.9]} 9... Nxf6 {[%clk
0:02:55.2]} 10. Qe2 {[%clk 0:02:50.2]} 10... O-O {[%clk 0:02:54.1]} 11. O-O-O
{[%clk 0:02:50.1]} 11... Nh5 {[%clk 0:02:54.5]} 12. Bg3 {[%clk 0:02:01.5]} 12...
Nf4 {[%clk 0:02:50.3]} 13. Bxf4 {[%clk 0:01:53.3]} 13... Rxf4 {[%clk 0:02:50]}
14. Kb1 {[%clk 0:01:50]} 14... Qf6 {[%clk 0:02:46.7]} 15. h4 {[%clk 0:01:35.3]}
15... Bd7 {[%clk 0:02:28.2]} 16. Rh3 {[%clk 0:01:05]} 16... Bb4 {[%clk
0:02:07.4]} 17. Rg3 {[%clk 0:00:12.8]} 17... Bxc3 {[%clk 0:02:03.1]} 18. bxc3
{[%clk 0:00:08.8]} 18... Kh8 {[%clk 0:02:01.9]} 19. Nd2 {[%clk 0:00:04.4]} 19...
Rxf2 {[%clk 0:01:59.4]} 20. Qh5 {[%clk 0:00:04.3]} 20... h6 {[%clk 0:01:53]} 21.
Rg6 {[%clk 0:00:04]} 21... Qf8 {[%clk 0:01:42.1]} 22. Nf3 {[%clk 0:00:03.2]}
22... Be8 {[%clk 0:01:28.2]} 23. Re1 {[%clk 0:00:02.3]} 23... Rxg2 {[%clk
0:01:20.3]} 24. Rexe6 {[%clk 0:00:01]} 24... Bxg6 {[%clk 0:01:12.8]} 25. Rxg6
{[%clk 0:00:01.9]} 25... Rxg6 {[%clk 0:00:50.4]} 26. Qxg6 {[%clk 0:00:02.8]}
26... Qg8 {[%clk 0:00:51]} 27. Ng5 {[%clk 0:00:03.2]} 27... Ne5 {[%clk
0:00:50.7]} 28. Qf5 {[%clk 0:00:02.6]} 28... Re8 {[%clk 0:00:45.5]} 29. Bb5
{[%clk 0:00:02.1]} 29... Re7 {[%clk 0:00:42.2]} 30. Nh3 {[%clk 0:00:01.4]} 30...
a6 {[%clk 0:00:35.1]} 31. Ba4 {[%clk 0:00:01]} 31... Nc4 {[%clk 0:00:31.3]} 0-1

[Event "Late-Titled-Tuesday-Blitz-June-18-2024"]
[Site "Chess.com"]
[Date "2024.06.18"]
[Round "5"]
[White "NovakRatko"]
[Black "aexmi"]
[Result "1-0"]
[WhiteElo "2413"]
[BlackElo "2278"]
[TimeControl "180+1"]
[EndTime "14:57:18 PDT"]
[Termination "NovakRatko won on time"]

1. d4 {[%clk 0:02:52.3]} 1... d5 {[%clk 0:02:55.1]} 2. c4 {[%clk 0:02:52.3]}
2... e6 {[%clk 0:02:54.3]} 3. cxd5 {[%clk 0:02:52.8]} 3... exd5 {[%clk
0:02:53.2]} 4. Nc3 {[%clk 0:02:53.7]} 4... c6 {[%clk 0:02:51.5]} 5. f3 {[%clk
0:02:53.7]} 5... Bd6 {[%clk 0:02:39.8]} 6. g3 {[%clk 0:02:52.2]} 6... Nf6 {[%clk
0:02:36.8]} 7. e4 {[%clk 0:02:52.2]} 7... dxe4 {[%clk 0:02:02.3]} 8. fxe4 {[%clk
0:02:51.8]} 8... Bc7 {[%clk 0:02:01.9]} 9. Nf3 {[%clk 0:02:37.3]} 9... O-O
{[%clk 0:01:56.1]} 10. Bg5 {[%clk 0:02:34.1]} 10... h6 {[%clk 0:01:47.3]} 11.
Bh4 {[%clk 0:02:32.7]} 11... g5 {[%clk 0:01:07.9]} 12. Nxg5 {[%clk 0:02:31.4]}
12... hxg5 {[%clk 0:01:07.5]} 13. Bxg5 {[%clk 0:02:31.5]} 13... Nbd7 {[%clk
0:00:53.8]} 14. e5 {[%clk 0:02:21.6]} 14... Qe8 {[%clk 0:00:52.4]} 15. Be2
{[%clk 0:02:19.4]} 15... Nh7 {[%clk 0:00:51.5]} 16. Bh6 {[%clk 0:02:17.6]} 16...
Qe6 {[%clk 0:00:25.7]} 17. Bxf8 {[%clk 0:02:13.3]} 17... Ndxf8 {[%clk
0:00:25.1]} 18. O-O {[%clk 0:02:12.5]} 18... Ng6 {[%clk 0:00:22.2]} 19. Ne4
{[%clk 0:02:09.3]} 19... Bb6 {[%clk 0:00:20]} 20. Qd2 {[%clk 0:02:05.8]} 20...
Qxe5 {[%clk 0:00:16.5]} 21. Nc5 {[%clk 0:01:46.3]} 21... Bxc5 {[%clk 0:00:14.7]}
22. dxc5 {[%clk 0:01:44.6]} 22... Qxc5+ {[%clk 0:00:14.9]} 23. Kh1 {[%clk
0:01:44.9]} 23... Be6 {[%clk 0:00:15.1]} 24. b4 {[%clk 0:01:32.1]} 24... Qd5+
{[%clk 0:00:12.6]} 25. Qxd5 {[%clk 0:01:32.5]} 25... Bxd5+ {[%clk 0:00:13.5]}
26. Bf3 {[%clk 0:01:33.2]} 26... Bxf3+ {[%clk 0:00:12.5]} 27. Rxf3 {[%clk
0:01:34.1]} 27... Rd8 {[%clk 0:00:12.7]} 28. Re1 {[%clk 0:01:29.8]} 28... Ng5
{[%clk 0:00:11.1]} 29. Rfe3 {[%clk 0:01:28.1]} 29... Kg7 {[%clk 0:00:10.1]} 30.
h4 {[%clk 0:01:27.1]} 30... Ne6 {[%clk 0:00:10.4]} 31. h5 {[%clk 0:01:24.2]}
31... Ne7 {[%clk 0:00:09.6]} 32. a3 {[%clk 0:01:22]} 32... Nd5 {[%clk
0:00:09.8]} 33. Re5 {[%clk 0:01:21]} 33... Kf6 {[%clk 0:00:09.3]} 34. Kh2 {[%clk
0:01:18.4]} 34... Rh8 {[%clk 0:00:09.2]} 35. g4 {[%clk 0:01:18]} 35... Rg8
{[%clk 0:00:09.4]} 36. Rf5+ {[%clk 0:01:18.2]} 36... Ke7 {[%clk 0:00:08.9]} 37.
Kg3 {[%clk 0:01:16.4]} 37... Rg5 {[%clk 0:00:09.1]} 38. Rf3 {[%clk 0:01:11.5]}
38... Rg8 {[%clk 0:00:07]} 39. Ref1 {[%clk 0:01:11.8]} 39... Rg7 {[%clk
0:00:06.4]} 40. Kh4 {[%clk 0:01:11.8]} 40... Ndc7 {[%clk 0:00:03.3]} 41. h6
{[%clk 0:01:11.9]} 41... Rh7 {[%clk 0:00:03.4]} 42. g5 {[%clk 0:01:12.4]} 42...
Ne8 {[%clk 0:00:03.4]} 43. Kh5 {[%clk 0:01:12]} 43... Nf8 {[%clk 0:00:02.4]} 44.
Re1+ {[%clk 0:01:09.8]} 44... Kd7 {[%clk 0:00:02.2]} 45. Rd3+ {[%clk 0:01:10]}
45... Nd6 {[%clk 0:00:02.2]} 46. Red1 {[%clk 0:01:10]} 1-0

[Event "Late-Titled-Tuesday-Blitz-June-18-2024"]
[Site "Chess.com"]
[Date "2024.06.18"]
[Round "5"]
[White "jero888"]
[Black "WindWhistler11"]
[Result "0-1"]
[WhiteElo "2333"]
[BlackElo "2513"]
[TimeControl "180+1"]
[EndTime "14:57:26 PDT"]
[Termination "WindWhistler11 won by checkmate"]

1. e4 {[%clk 0:03:00.9]} 1... e6 {[%clk 0:02:56]} 2. d4 {[%clk 0:03:00.3]} 2...
d5 {[%clk 0:02:56.5]} 3. Nd2 {[%clk 0:03:00.9]} 3... Nc6 {[%clk 0:02:56.3]} 4.
Ngf3 {[%clk 0:03:00.2]} 4... Nf6 {[%clk 0:02:56.8]} 5. e5 {[%clk 0:02:59.9]}
5... Nd7 {[%clk 0:02:57.5]} 6. Be2 {[%clk 0:03:00.5]} 6... f6 {[%clk 0:02:58.1]}
7. Nf1 {[%clk 0:03:01.1]} 7... fxe5 {[%clk 0:02:58.1]} 8. dxe5 {[%clk
0:03:01.2]} 8... Ndxe5 {[%clk 0:02:58.8]} 9. Nxe5 {[%clk 0:03:01.8]} 9... Nxe5
{[%clk 0:02:59.3]} 10. Bh5+ {[%clk 0:03:02.4]} 10... g6 {[%clk 0:02:58.7]} 11.
Bf4 {[%clk 0:03:01.9]} 11... Nf7 {[%clk 0:02:58.5]} 12. Be2 {[%clk 0:02:57.6]}
12... Bg7 {[%clk 0:02:58.9]} 13. c3 {[%clk 0:02:56.2]} 13... e5 {[%clk
0:02:56.4]} 14. Bg3 {[%clk 0:02:53.8]} 14... O-O {[%clk 0:02:48.7]} 15. h4
{[%clk 0:02:53.9]} 15... Bf5 {[%clk 0:02:39]} 16. Ne3 {[%clk 0:02:50.4]} 16...
Be6 {[%clk 0:02:29.2]} 17. h5 {[%clk 0:02:47.7]} 17... Ng5 {[%clk 0:01:52.7]}
18. hxg6 {[%clk 0:02:45]} 18... hxg6 {[%clk 0:01:53.2]} 19. Qc2 {[%clk
0:02:36.9]} 19... Ne4 {[%clk 0:01:44.2]} 20. Bh4 {[%clk 0:02:37.2]} 20... Bf6
{[%clk 0:01:40.2]} 21. Bxf6 {[%clk 0:02:33.8]} 21... Qxf6 {[%clk 0:01:41.1]} 22.
Bf3 {[%clk 0:02:31.1]} 22... Rad8 {[%clk 0:01:23.5]} 23. O-O-O {[%clk
0:02:30.3]} 23... Nxf2 {[%clk 0:01:03]} 24. Qxf2 {[%clk 0:02:01]} 24... e4
{[%clk 0:01:01.9]} 25. Qg3 {[%clk 0:01:48.9]} 25... exf3 {[%clk 0:00:55.8]} 26.
Qxc7 {[%clk 0:01:49.5]} 26... Rd7 {[%clk 0:00:52.4]} 27. Qh2 {[%clk 0:01:32.8]}
27... f2 {[%clk 0:00:36]} 28. Kb1 {[%clk 0:01:20.5]} 28... Bf5+ {[%clk
0:00:32.2]} 29. Ka1 {[%clk 0:01:05.6]} 29... Be4 {[%clk 0:00:29.1]} 30. Ng4
{[%clk 0:01:03.9]} 30... Qg5 {[%clk 0:00:20.8]} 31. Qh8+ {[%clk 0:01:02.1]}
31... Kf7 {[%clk 0:00:20.7]} 32. Rh7+ {[%clk 0:01:01.7]} 32... Ke8 {[%clk
0:00:18.9]} 33. Qxf8+ {[%clk 0:00:17]} 33... Kxf8 {[%clk 0:00:18.2]} 34. Rxd7
{[%clk 0:00:17.9]} 34... Qxg4 {[%clk 0:00:18.7]} 35. Rxb7 {[%clk 0:00:17.9]}
35... Qxd1# {[%clk 0:00:18]} 0-1

[Event "Late-Titled-Tuesday-Blitz-June-18-2024"]
[Site "Chess.com"]
[Date "2024.06.18"]
[Round "5"]
[White "pouya21"]
[Black "BerlinDrawer"]
[Result "1-0"]
[WhiteElo "2815"]
[BlackElo "2577"]
[TimeControl "180+1"]
[EndTime "14:57:27 PDT"]
[Termination "pouya21 won by resignation"]

1. d4 {[%clk 0:03:00.9]} 1... Nf6 {[%clk 0:02:59.4]} 2. c4 {[%clk 0:02:58.7]}
2... e6 {[%clk 0:02:59.4]} 3. Nf3 {[%clk 0:02:58.5]} 3... d5 {[%clk 0:02:58.3]}
4. g3 {[%clk 0:02:58.7]} 4... Bb4+ {[%clk 0:02:57.5]} 5. Bd2 {[%clk 0:02:57.8]}
5... Be7 {[%clk 0:02:58.1]} 6. Bg2 {[%clk 0:02:57.8]} 6... O-O {[%clk
0:02:58.6]} 7. O-O {[%clk 0:02:57.8]} 7... c6 {[%clk 0:02:58.7]} 8. Na3 {[%clk
0:02:58.2]} 8... Nbd7 {[%clk 0:02:57]} 9. Rc1 {[%clk 0:02:57.7]} 9... Ne4 {[%clk
0:02:53.3]} 10. Be3 {[%clk 0:02:46.5]} 10... f5 {[%clk 0:02:36.6]} 11. Ne1
{[%clk 0:02:38.4]} 11... Bg5 {[%clk 0:02:20.1]} 12. Bxg5 {[%clk 0:02:22]} 12...
Nxg5 {[%clk 0:02:21]} 13. Nd3 {[%clk 0:02:20.7]} 13... Qe7 {[%clk 0:02:08.5]}
14. Nb1 {[%clk 0:02:12.9]} 14... h6 {[%clk 0:02:04.6]} 15. Nd2 {[%clk
0:02:12.6]} 15... Ne4 {[%clk 0:01:58.8]} 16. Nf3 {[%clk 0:02:10.4]} 16... g5
{[%clk 0:01:50.5]} 17. Nfe5 {[%clk 0:02:09.8]} 17... Qg7 {[%clk 0:01:43.1]} 18.
f3 {[%clk 0:02:01.9]} 18... Nef6 {[%clk 0:01:41.7]} 19. b4 {[%clk 0:01:56.9]}
19... dxc4 {[%clk 0:01:27.3]} 20. Nxc4 {[%clk 0:01:52.5]} 20... Nd5 {[%clk
0:01:24.6]} 21. Nde5 {[%clk 0:01:12.6]} 21... Nxb4 {[%clk 0:00:54.6]} 22. Qb3
{[%clk 0:01:10.4]} 22... Nd5 {[%clk 0:00:53.5]} 23. e4 {[%clk 0:01:10.9]} 23...
N5f6 {[%clk 0:00:43.7]} 24. exf5 {[%clk 0:01:05.6]} 24... Nxe5 {[%clk
0:00:42.3]} 25. dxe5 {[%clk 0:01:05]} 25... Nd5 {[%clk 0:00:42.5]} 26. f6 {[%clk
0:01:04]} 26... Qc7 {[%clk 0:00:38.2]} 27. f4 {[%clk 0:00:57.6]} 27... a5 {[%clk
0:00:32]} 28. Kh1 {[%clk 0:00:54.8]} 28... a4 {[%clk 0:00:31.7]} 29. Qd3 {[%clk
0:00:48]} 29... Kh8 {[%clk 0:00:30.1]} 30. fxg5 {[%clk 0:00:41.9]} 30... hxg5
{[%clk 0:00:29.3]} 31. f7 {[%clk 0:00:33.6]} 31... Rxf7 {[%clk 0:00:26.7]} 32.
Qg6 {[%clk 0:00:34.1]} 32... Rxf1+ {[%clk 0:00:20.5]} 33. Rxf1 {[%clk 0:00:35]}
33... Qd8 {[%clk 0:00:06.4]} 34. Rf7 {[%clk 0:00:32.9]} 1-0